[Event "Early-Titled-Tuesday-Blitz-May-14-2024"]
[Site "Chess.com"]
[Date "2024.05.14"]
[Round "3"]
[White "BeautiFullMindChess"]
[Black "ChessQueen"]
[Result "1-0"]
[WhiteElo "2315"]
[BlackElo "2786"]
[TimeControl "180+1"]
[EndTime "8:27:32 PDT"]
[Termination "BeautiFullMindChess won by checkmate"]

1. e4 {[%clk 0:02:47.4]} 1... c6 {[%clk 0:02:59.3]} 2. d4 {[%clk 0:02:47.2]}
2... d5 {[%clk 0:03:00.2]} 3. exd5 {[%clk 0:02:47.8]} 3... cxd5 {[%clk
0:03:00.5]} 4. Bd3 {[%clk 0:02:48.5]} 4... Nc6 {[%clk 0:03:01]} 5. c3 {[%clk
0:02:48.4]} 5... Nf6 {[%clk 0:03:01.7]} 6. h3 {[%clk 0:02:48.4]} 6... g6 {[%clk
0:03:01.9]} 7. Bf4 {[%clk 0:02:48.4]} 7... Bf5 {[%clk 0:03:02.3]} 8. Be2 {[%clk
0:02:48.5]} 8... e6 {[%clk 0:03:00.4]} 9. Nf3 {[%clk 0:02:48.1]} 9... h6 {[%clk
0:02:58.2]} 10. O-O {[%clk 0:02:47.8]} 10... g5 {[%clk 0:02:58.5]} 11. Bh2
{[%clk 0:02:47.7]} 11... Bd6 {[%clk 0:02:57]} 12. Bxd6 {[%clk 0:02:45.6]} 12...
Qxd6 {[%clk 0:02:56.9]} 13. Nbd2 {[%clk 0:02:45.6]} 13... Rg8 {[%clk 0:02:54.2]}
14. Ne5 {[%clk 0:02:26.4]} 14... Nxe5 {[%clk 0:02:52.3]} 15. dxe5 {[%clk
0:02:27.3]} 15... Qxe5 {[%clk 0:02:52.9]} 16. Bb5+ {[%clk 0:02:26.9]} 16... Kf8
{[%clk 0:02:52]} 17. Nf3 {[%clk 0:01:49.6]} 17... Qf4 {[%clk 0:02:50.8]} 18. g3
{[%clk 0:01:46.8]} 18... Qc7 {[%clk 0:02:49.6]} 19. Qd4 {[%clk 0:01:35.4]} 19...
Ne4 {[%clk 0:02:42.6]} 20. Ne5 {[%clk 0:01:28.7]} 20... Qc5 {[%clk 0:02:30.5]}
21. Nd7+ {[%clk 0:01:26.6]} 21... Ke7 {[%clk 0:02:30.5]} 22. Nxc5 {[%clk
0:01:26.6]} 22... Nd6 {[%clk 0:02:29.5]} 23. Bd3 {[%clk 0:01:23.5]} 23... Bxh3
{[%clk 0:02:29.4]} 24. Rfe1 {[%clk 0:01:22.9]} 24... h5 {[%clk 0:02:26.9]} 25.
Qxd5 {[%clk 0:01:16.8]} 25... Rad8 {[%clk 0:02:21.3]} 26. Nxb7 {[%clk
0:01:12.8]} 26... Nxb7 {[%clk 0:02:18.5]} 27. Qxb7+ {[%clk 0:01:12.8]} 27... Rd7
{[%clk 0:02:18.9]} 28. Qb4+ {[%clk 0:01:12.6]} 28... Kf6 {[%clk 0:02:19.3]} 29.
Bb5 {[%clk 0:01:08]} 29... Rd5 {[%clk 0:02:16.6]} 30. Rad1 {[%clk 0:01:04.9]}
30... Rgd8 {[%clk 0:02:14.9]} 31. Rxd5 {[%clk 0:01:04.2]} 31... Rxd5 {[%clk
0:02:15.8]} 32. Bc4 {[%clk 0:01:03.1]} 32... Rd2 {[%clk 0:02:13.3]} 33. Qf8
{[%clk 0:00:59.2]} 33... Bf5 {[%clk 0:02:07.6]} 34. Qb8 {[%clk 0:00:49.1]} 34...
h4 {[%clk 0:02:05.5]} 35. gxh4 {[%clk 0:00:44.1]} 35... gxh4 {[%clk 0:02:06.4]}
36. Qf4 {[%clk 0:00:43.7]} 36... Rxb2 {[%clk 0:02:04.2]} 37. Qxh4+ {[%clk
0:00:43.2]} 37... Kg7 {[%clk 0:02:04.7]} 38. Bb3 {[%clk 0:00:36.2]} 38... Bg6
{[%clk 0:01:59.6]} 39. Re3 {[%clk 0:00:32.6]} 39... Rb1+ {[%clk 0:01:59.1]} 40.
Kg2 {[%clk 0:00:31.7]} 40... a5 {[%clk 0:01:52.5]} 41. Rh3 {[%clk 0:00:31]}
41... Kf8 {[%clk 0:01:51.4]} 42. Qd8+ {[%clk 0:00:30.5]} 42... Kg7 {[%clk
0:01:50.7]} 43. Qh8# {[%clk 0:00:31]} 1-0

[Event "Early-Titled-Tuesday-Blitz-May-14-2024"]
[Site "Chess.com"]
[Date "2024.05.14"]
[Round "3"]
[White "NMChessToImpress"]
[Black "ChainedDowntohell"]
[Result "0-1"]
[WhiteElo "2262"]
[BlackElo "2593"]
[TimeControl "180+1"]
[EndTime "8:27:34 PDT"]
[Termination "ChainedDowntohell won by resignation"]

1. e4 {[%clk 0:03:00.9]} 1... e6 {[%clk 0:02:58.1]} 2. d4 {[%clk 0:03:00.5]}
2... d5 {[%clk 0:02:57.1]} 3. e5 {[%clk 0:03:00.8]} 3... c5 {[%clk 0:02:56]} 4.
c3 {[%clk 0:03:01.3]} 4... Nc6 {[%clk 0:02:55.7]} 5. Nf3 {[%clk 0:03:01.8]} 5...
Bd7 {[%clk 0:02:53]} 6. Be2 {[%clk 0:03:01.3]} 6... Nge7 {[%clk 0:02:50.3]} 7.
O-O {[%clk 0:02:59.3]} 7... Nf5 {[%clk 0:02:48.3]} 8. dxc5 {[%clk 0:02:54.3]}
8... Bxc5 {[%clk 0:02:47]} 9. b4 {[%clk 0:02:54.6]} 9... Bb6 {[%clk 0:02:43.8]}
10. Bd3 {[%clk 0:02:55.1]} 10... O-O {[%clk 0:02:40.9]} 11. Bxf5 {[%clk
0:02:46.6]} 11... exf5 {[%clk 0:02:39.3]} 12. Qxd5 {[%clk 0:02:47.2]} 12... Be6
{[%clk 0:02:24.6]} 13. Qxd8 {[%clk 0:02:44.4]} 13... Rfxd8 {[%clk 0:02:21.2]}
14. b5 {[%clk 0:02:21.8]} 14... Na5 {[%clk 0:02:18.7]} 15. Ba3 {[%clk
0:02:10.4]} 15... Bc4 {[%clk 0:02:10.8]} 16. Re1 {[%clk 0:02:06.1]} 16... Bxb5
{[%clk 0:02:10.3]} 17. Bb4 {[%clk 0:01:59.6]} 17... Nc6 {[%clk 0:02:04.6]} 18.
Na3 {[%clk 0:01:55.7]} 18... Nxb4 {[%clk 0:01:57.9]} 19. cxb4 {[%clk 0:01:55.5]}
19... Bc6 {[%clk 0:01:55.9]} 20. Nc4 {[%clk 0:01:39.8]} 20... Bc7 {[%clk
0:01:51.4]} 21. e6 {[%clk 0:01:30.3]} 21... fxe6 {[%clk 0:01:48.8]} 22. Ng5
{[%clk 0:01:15.6]} 22... Bd5 {[%clk 0:01:43.8]} 23. Ne3 {[%clk 0:01:11.8]} 23...
Bb6 {[%clk 0:01:41.5]} 24. Nxd5 {[%clk 0:01:06.4]} 24... exd5 {[%clk 0:01:40.9]}
25. Re7 {[%clk 0:01:03.7]} 25... Bd4 {[%clk 0:01:33.7]} 26. Rae1 {[%clk
0:00:42.8]} 26... Bf6 {[%clk 0:01:32.9]} 27. h4 {[%clk 0:00:39.9]} 27... h6
{[%clk 0:01:28.4]} 28. Rxb7 {[%clk 0:00:35.2]} 28... hxg5 {[%clk 0:01:27.3]} 29.
hxg5 {[%clk 0:00:33.3]} 29... Bxg5 {[%clk 0:01:27.4]} 0-1

[Event "Early-Titled-Tuesday-Blitz-May-14-2024"]
[Site "Chess.com"]
[Date "2024.05.14"]
[Round "3"]
[White "Nouali_Mohamed"]
[Black "Trovita84"]
[Result "1-0"]
[WhiteElo "2559"]
[BlackElo "2147"]
[TimeControl "180+1"]
[EndTime "8:27:34 PDT"]
[Termination "Nouali_Mohamed won by resignation"]

1. e4 {[%clk 0:03:00.1]} 1... e6 {[%clk 0:02:56.6]} 2. d4 {[%clk 0:03:00]} 2...
d5 {[%clk 0:02:56.3]} 3. Nc3 {[%clk 0:03:00.3]} 3... Bb4 {[%clk 0:02:52.6]} 4.
Ne2 {[%clk 0:02:59.1]} 4... Nf6 {[%clk 0:02:42.3]} 5. e5 {[%clk 0:02:53.8]} 5...
Ne4 {[%clk 0:02:41.2]} 6. a3 {[%clk 0:02:53.8]} 6... Nxc3 {[%clk 0:02:36.8]} 7.
Nxc3 {[%clk 0:02:54.7]} 7... Be7 {[%clk 0:02:22]} 8. Qg4 {[%clk 0:02:54]} 8...
g6 {[%clk 0:02:14.7]} 9. Be3 {[%clk 0:02:51.4]} 9... Nd7 {[%clk 0:02:11.5]} 10.
O-O-O {[%clk 0:02:50]} 10... c5 {[%clk 0:02:11]} 11. Nb5 {[%clk 0:02:41.5]}
11... O-O {[%clk 0:00:58.9]} 12. h4 {[%clk 0:02:38]} 12... h5 {[%clk 0:00:58.1]}
13. Qg3 {[%clk 0:02:38.4]} 13... cxd4 {[%clk 0:00:55.3]} 14. Bxd4 {[%clk
0:02:34.6]} 14... Nc5 {[%clk 0:00:42.5]} 15. f3 {[%clk 0:02:23.3]} 15... Bd7
{[%clk 0:00:28.5]} 16. Nd6 {[%clk 0:02:21.7]} 16... Qc7 {[%clk 0:00:26.1]} 17.
Kb1 {[%clk 0:01:50.7]} 17... Be8 {[%clk 0:00:23.8]} 18. Qf4 {[%clk 0:01:37.6]}
18... Rc8 {[%clk 0:00:12.8]} 19. Nxc8 {[%clk 0:01:32.4]} 19... Qxc8 {[%clk
0:00:11.7]} 20. g4 {[%clk 0:01:32]} 1-0

[Event "Early-Titled-Tuesday-Blitz-May-14-2024"]
[Site "Chess.com"]
[Date "2024.05.14"]
[Round "3"]
[White "OppieZippy"]
[Black "Renatoforf"]
[Result "1-0"]
[WhiteElo "2354"]
[BlackElo "1933"]
[TimeControl "180+1"]
[EndTime "8:27:34 PDT"]
[Termination "OppieZippy won by resignation"]

1. d4 {[%clk 0:03:00.9]} 1... Nf6 {[%clk 0:02:58.7]} 2. c4 {[%clk 0:03:01]} 2...
c5 {[%clk 0:02:57.8]} 3. e3 {[%clk 0:02:59.7]} 3... g6 {[%clk 0:02:56.5]} 4. Nf3
{[%clk 0:02:58.5]} 4... Bg7 {[%clk 0:02:56.9]} 5. Nc3 {[%clk 0:02:59]} 5... O-O
{[%clk 0:02:55.8]} 6. Be2 {[%clk 0:02:59.3]} 6... cxd4 {[%clk 0:02:54.4]} 7.
exd4 {[%clk 0:02:59.2]} 7... d5 {[%clk 0:02:54.9]} 8. c5 {[%clk 0:02:59]} 8...
b6 {[%clk 0:02:53.7]} 9. b4 {[%clk 0:02:53.8]} 9... a5 {[%clk 0:02:44.3]} 10.
Ba3 {[%clk 0:02:45]} 10... axb4 {[%clk 0:02:41.9]} 11. Bxb4 {[%clk 0:02:45.9]}
11... Nc6 {[%clk 0:02:40.5]} 12. a3 {[%clk 0:02:45]} 12... Nxb4 {[%clk
0:02:23.1]} 13. axb4 {[%clk 0:02:44.6]} 13... Rxa1 {[%clk 0:02:21.5]} 14. Qxa1
{[%clk 0:02:45.5]} 14... bxc5 {[%clk 0:02:20.3]} 15. bxc5 {[%clk 0:02:46.4]}
15... Bg4 {[%clk 0:02:17.6]} 16. O-O {[%clk 0:02:46.8]} 16... Ne4 {[%clk
0:02:16]} 17. Rd1 {[%clk 0:02:43]} 17... Qb8 {[%clk 0:02:06.1]} 18. h3 {[%clk
0:02:41.3]} 18... Bxf3 {[%clk 0:02:04.5]} 19. Bxf3 {[%clk 0:02:42.2]} 19... Nxc3
{[%clk 0:01:56.8]} 20. Qxc3 {[%clk 0:02:43.1]} 20... e5 {[%clk 0:01:54.3]} 21.
dxe5 {[%clk 0:02:37.7]} 21... Bxe5 {[%clk 0:01:52.9]} 22. Qd3 {[%clk 0:02:34.8]}
22... d4 {[%clk 0:01:51.6]} 23. g3 {[%clk 0:02:34.7]} 23... Qc7 {[%clk
0:01:47.2]} 24. Qc4 {[%clk 0:02:26]} 24... Rc8 {[%clk 0:01:41.1]} 25. c6 {[%clk
0:02:25.1]} 25... Qb6 {[%clk 0:01:24.5]} 26. Kg2 {[%clk 0:02:23.6]} 26... Qb2
{[%clk 0:01:20.8]} 27. Re1 {[%clk 0:02:18.1]} 27... Bf6 {[%clk 0:01:13.4]} 28.
Bd5 {[%clk 0:02:03.5]} 28... Rc7 {[%clk 0:01:11.8]} 29. Re2 {[%clk 0:02:01.1]}
29... Qc3 {[%clk 0:01:10.4]} 30. Qb5 {[%clk 0:01:58.6]} 30... d3 {[%clk
0:01:09]} 31. Re3 {[%clk 0:01:49.4]} 31... d2 {[%clk 0:00:50.1]} 32. Rxc3 {[%clk
0:01:46.6]} 32... d1=Q {[%clk 0:00:49.3]} 33. Rf3 {[%clk 0:01:45]} 33... Be5
{[%clk 0:00:45]} 34. Rxf7 {[%clk 0:01:31.5]} 34... Rxf7 {[%clk 0:00:43.9]} 35.
Bxf7+ {[%clk 0:01:32.1]} 35... Kxf7 {[%clk 0:00:42.7]} 36. Qxe5 {[%clk
0:01:32.4]} 1-0

[Event "Early-Titled-Tuesday-Blitz-May-14-2024"]
[Site "Chess.com"]
[Date "2024.05.14"]
[Round "3"]
[White "jaramsdal"]
[Black "TitarovVasiliYouTube"]
[Result "0-1"]
[WhiteElo "2386"]
[BlackElo "2625"]
[TimeControl "180+1"]
[EndTime "8:27:37 PDT"]
[Termination "TitarovVasiliYouTube won by resignation"]

1. e4 {[%clk 0:03:00.9]} 1... Nf6 {[%clk 0:02:58.4]} 2. e5 {[%clk 0:03:00.1]}
2... Nd5 {[%clk 0:02:58.4]} 3. d4 {[%clk 0:03:00.6]} 3... d6 {[%clk 0:02:57.8]}
4. Nf3 {[%clk 0:03:00.9]} 4... dxe5 {[%clk 0:02:57.9]} 5. Nxe5 {[%clk
0:03:01.8]} 5... c6 {[%clk 0:02:58.1]} 6. Be2 {[%clk 0:02:46.1]} 6... Bf5 {[%clk
0:02:54.5]} 7. O-O {[%clk 0:02:36]} 7... e6 {[%clk 0:02:51.1]} 8. c4 {[%clk
0:02:26.6]} 8... Nf6 {[%clk 0:02:50.7]} 9. Nc3 {[%clk 0:02:23.5]} 9... Nbd7
{[%clk 0:02:50.7]} 10. Bg5 {[%clk 0:02:22.9]} 10... Nxe5 {[%clk 0:02:40.7]} 11.
dxe5 {[%clk 0:02:23.8]} 11... Qxd1 {[%clk 0:02:41]} 12. Raxd1 {[%clk 0:02:21.3]}
12... Nd7 {[%clk 0:02:41.6]} 13. f4 {[%clk 0:01:57.2]} 13... Bc5+ {[%clk
0:02:40.8]} 14. Kh1 {[%clk 0:01:43.8]} 14... h6 {[%clk 0:02:39.9]} 15. Bh4
{[%clk 0:01:43.3]} 15... Rg8 {[%clk 0:01:47.7]} 16. Na4 {[%clk 0:01:37.9]} 16...
Be7 {[%clk 0:01:34.5]} 17. Bxe7 {[%clk 0:01:33.4]} 17... Kxe7 {[%clk 0:01:35.4]}
18. b4 {[%clk 0:01:28.4]} 18... Bc2 {[%clk 0:01:27.7]} 19. Rxd7+ {[%clk
0:01:28.4]} 19... Kxd7 {[%clk 0:01:27.9]} 20. Nc5+ {[%clk 0:01:29.3]} 20... Kc7
{[%clk 0:01:27.8]} 21. b5 {[%clk 0:01:24.5]} 21... Rad8 {[%clk 0:00:56.3]} 22.
Bf3 {[%clk 0:01:24.3]} 22... Rd4 {[%clk 0:00:45.3]} 23. Rc1 {[%clk 0:01:17.5]}
23... Rxc4 {[%clk 0:00:41.7]} 24. Ne4 {[%clk 0:01:04.4]} 24... Rxe4 {[%clk
0:00:40.6]} 25. Bxe4 {[%clk 0:01:02.4]} 25... Bxe4 {[%clk 0:00:41.5]} 0-1

[Event "Early-Titled-Tuesday-Blitz-May-14-2024"]
[Site "Chess.com"]
[Date "2024.05.14"]
[Round "3"]
[White "manitodeplomo"]
[Black "Ariadna_Atreides"]
[Result "1-0"]
[WhiteElo "2582"]
[BlackElo "2241"]
[TimeControl "180+1"]
[EndTime "8:27:42 PDT"]
[Termination "manitodeplomo won on time"]

1. d4 {[%clk 0:03:00.9]} 1... Nf6 {[%clk 0:02:58.2]} 2. c4 {[%clk 0:02:58.8]}
2... e6 {[%clk 0:02:58.6]} 3. Nf3 {[%clk 0:02:58]} 3... Bb4+ {[%clk 0:02:58.9]}
4. Bd2 {[%clk 0:02:56.9]} 4... Bxd2+ {[%clk 0:02:58.2]} 5. Qxd2 {[%clk
0:02:54.1]} 5... O-O {[%clk 0:02:57.4]} 6. Nc3 {[%clk 0:02:53.8]} 6... d5 {[%clk
0:02:54.5]} 7. e3 {[%clk 0:02:52.4]} 7... Qe7 {[%clk 0:02:54.3]} 8. Rc1 {[%clk
0:02:49.8]} 8... Rd8 {[%clk 0:02:53.8]} 9. c5 {[%clk 0:02:47.8]} 9... b6 {[%clk
0:02:44]} 10. b4 {[%clk 0:02:46.6]} 10... a5 {[%clk 0:02:42.5]} 11. a3 {[%clk
0:02:45.1]} 11... axb4 {[%clk 0:02:37.9]} 12. axb4 {[%clk 0:02:46]} 12... Ne4
{[%clk 0:02:10]} 13. Qc2 {[%clk 0:02:20.5]} 13... f5 {[%clk 0:01:41.4]} 14. Bd3
{[%clk 0:02:13.7]} 14... Ba6 {[%clk 0:01:38.6]} 15. b5 {[%clk 0:02:10.8]} 15...
Bc8 {[%clk 0:01:35.3]} 16. c6 {[%clk 0:02:07.6]} 16... Ra3 {[%clk 0:01:27.5]}
17. Bxe4 {[%clk 0:02:02.3]} 17... fxe4 {[%clk 0:01:17.2]} 18. Ne5 {[%clk
0:02:02.2]} 18... Qg5 {[%clk 0:00:37.2]} 19. O-O {[%clk 0:01:57.8]} 19... h5
{[%clk 0:00:36.1]} 20. Qb2 {[%clk 0:01:50.2]} 20... Ra5 {[%clk 0:00:33.2]} 21.
Ra1 {[%clk 0:01:49.3]} 21... h4 {[%clk 0:00:22.7]} 22. h3 {[%clk 0:01:47.8]}
22... Rf8 {[%clk 0:00:09.5]} 23. Rxa5 {[%clk 0:01:42.1]} 23... bxa5 {[%clk
0:00:10.4]} 24. Ra1 {[%clk 0:01:41]} 24... a4 {[%clk 0:00:06.3]} 25. Rxa4 {[%clk
0:01:39.8]} 25... Nxc6 {[%clk 0:00:01.5]} 26. bxc6 {[%clk 0:01:38.8]} 1-0

[Event "Early-Titled-Tuesday-Blitz-May-14-2024"]
[Site "Chess.com"]
[Date "2024.05.14"]
[Round "3"]
[White "MdChess1734"]
[Black "DonJuanEGenaro"]
[Result "1-0"]
[WhiteElo "2368"]
[BlackElo "2006"]
[TimeControl "180+1"]
[EndTime "8:27:44 PDT"]
[Termination "MdChess1734 won by resignation"]

1. e4 {[%clk 0:02:58]} 1... c5 {[%clk 0:02:57.8]} 2. Nf3 {[%clk 0:02:57.9]} 2...
Nc6 {[%clk 0:02:57.5]} 3. d4 {[%clk 0:02:57.6]} 3... cxd4 {[%clk 0:02:56.7]} 4.
Nxd4 {[%clk 0:02:57.8]} 4... Nf6 {[%clk 0:02:56.5]} 5. Nc3 {[%clk 0:02:57.8]}
5... d6 {[%clk 0:02:56.6]} 6. Bg5 {[%clk 0:02:56.4]} 6... Qb6 {[%clk 0:02:54.8]}
7. Nb3 {[%clk 0:02:47.8]} 7... e6 {[%clk 0:02:54.5]} 8. Qd2 {[%clk 0:02:47.4]}
8... a6 {[%clk 0:02:54.5]} 9. O-O-O {[%clk 0:02:46.6]} 9... Bd7 {[%clk
0:02:53.7]} 10. f4 {[%clk 0:02:44.3]} 10... h6 {[%clk 0:02:44.6]} 11. Bh4 {[%clk
0:02:20.6]} 11... Qc7 {[%clk 0:02:21.6]} 12. Be2 {[%clk 0:02:17.3]} 12... Be7
{[%clk 0:02:17.1]} 13. g4 {[%clk 0:02:11.2]} 13... b5 {[%clk 0:02:04]} 14. a3
{[%clk 0:02:10]} 14... b4 {[%clk 0:01:56.6]} 15. axb4 {[%clk 0:02:09.5]} 15...
Nxb4 {[%clk 0:01:56.4]} 16. Bg3 {[%clk 0:02:09.1]} 16... a5 {[%clk 0:01:40.1]}
17. g5 {[%clk 0:02:07.7]} 17... a4 {[%clk 0:01:31.6]} 18. Nb5 {[%clk 0:01:50.2]}
18... Bxb5 {[%clk 0:01:13.8]} 19. Bxb5+ {[%clk 0:01:49.5]} 19... Nd7 {[%clk
0:01:09.4]} 20. Qxb4 {[%clk 0:01:46.5]} 20... axb3 {[%clk 0:01:06.9]} 21. Qxb3
{[%clk 0:01:44.6]} 21... hxg5 {[%clk 0:01:00.2]} 22. f5 {[%clk 0:01:42.8]} 22...
g4 {[%clk 0:00:53.4]} 23. fxe6 {[%clk 0:01:36.7]} 23... Bg5+ {[%clk 0:00:50.5]}
24. Kb1 {[%clk 0:01:36.5]} 24... fxe6 {[%clk 0:00:23.6]} 25. Qxe6+ {[%clk
0:01:34.9]} 25... Be7 {[%clk 0:00:22.9]} 26. Bxd6 {[%clk 0:01:33.1]} 26... Qd8
{[%clk 0:00:17.8]} 1-0

[Event "Early-Titled-Tuesday-Blitz-May-14-2024"]
[Site "Chess.com"]
[Date "2024.05.14"]
[Round "3"]
[White "SanchezKelvin"]
[Black "SidArun"]
[Result "0-1"]
[WhiteElo "2607"]
[BlackElo "2347"]
[TimeControl "180+1"]
[EndTime "8:27:47 PDT"]
[Termination "SidArun won by resignation"]

1. d4 {[%clk 0:02:58.6]} 1... d5 {[%clk 0:02:59.6]} 2. c4 {[%clk 0:02:58.4]}
2... e6 {[%clk 0:03:00]} 3. Nc3 {[%clk 0:02:59.1]} 3... c6 {[%clk 0:03:00.3]} 4.
Nf3 {[%clk 0:03:00]} 4... dxc4 {[%clk 0:03:00.2]} 5. g3 {[%clk 0:02:59.4]} 5...
b5 {[%clk 0:02:59.1]} 6. Bg2 {[%clk 0:02:59.5]} 6... a6 {[%clk 0:02:56.7]} 7.
O-O {[%clk 0:02:59.7]} 7... Bb7 {[%clk 0:02:56.3]} 8. b3 {[%clk 0:02:56.7]} 8...
cxb3 {[%clk 0:02:51]} 9. Qxb3 {[%clk 0:02:54.8]} 9... Nf6 {[%clk 0:02:47.6]} 10.
Be3 {[%clk 0:02:50.3]} 10... Be7 {[%clk 0:02:43.9]} 11. a4 {[%clk 0:02:49]}
11... b4 {[%clk 0:02:43.2]} 12. a5 {[%clk 0:02:44.4]} 12... Nd5 {[%clk
0:02:18.9]} 13. Ne4 {[%clk 0:02:39]} 13... Nd7 {[%clk 0:02:13.7]} 14. Rfc1
{[%clk 0:02:35.2]} 14... O-O {[%clk 0:02:09.2]} 15. Bd2 {[%clk 0:02:33.6]} 15...
Rc8 {[%clk 0:02:06]} 16. h4 {[%clk 0:02:30.4]} 16... c5 {[%clk 0:01:57.4]} 17.
dxc5 {[%clk 0:02:24]} 17... Nxc5 {[%clk 0:01:56.9]} 18. Nxc5 {[%clk 0:02:23.6]}
18... Bxc5 {[%clk 0:01:56.3]} 19. e4 {[%clk 0:02:21.1]} 19... Nf6 {[%clk
0:01:41.6]} 20. Rxc5 {[%clk 0:02:14.1]} 20... Rxc5 {[%clk 0:01:39.3]} 21. Bxb4
{[%clk 0:02:12.8]} 21... Rb5 {[%clk 0:01:39.3]} 22. Bf1 {[%clk 0:02:11.7]} 22...
Rxb4 {[%clk 0:01:30.3]} 23. Qxb4 {[%clk 0:02:10.9]} 23... Bxe4 {[%clk
0:01:30.5]} 24. Ng5 {[%clk 0:02:07.6]} 24... Ba8 {[%clk 0:01:24.9]} 25. Bxa6
{[%clk 0:02:03.1]} 25... Qd5 {[%clk 0:01:24.5]} 26. f3 {[%clk 0:02:03.3]} 26...
h6 {[%clk 0:01:23.2]} 27. Ne4 {[%clk 0:01:59.3]} 27... Nxe4 {[%clk 0:01:17.3]}
28. fxe4 {[%clk 0:02:00.2]} 28... Qe5 {[%clk 0:01:16.7]} 29. Ra3 {[%clk
0:01:56.7]} 29... Bxe4 {[%clk 0:01:14.3]} 30. Bf1 {[%clk 0:01:54.7]} 30... Rb8
{[%clk 0:01:08.1]} 31. Qc3 {[%clk 0:01:52.5]} 31... Qd5 {[%clk 0:01:04.3]} 32.
a6 {[%clk 0:01:51.1]} 32... Ra8 {[%clk 0:00:48.8]} 33. a7 {[%clk 0:01:50.9]}
33... Kh7 {[%clk 0:00:43.7]} 34. Qb2 {[%clk 0:01:47.1]} 34... Qc5+ {[%clk
0:00:39]} 35. Kh2 {[%clk 0:01:43.6]} 35... Rxa7 {[%clk 0:00:38.1]} 36. Rxa7
{[%clk 0:01:41.9]} 36... Qxa7 {[%clk 0:00:38.1]} 37. Qe5 {[%clk 0:01:38.7]}
37... Qf2+ {[%clk 0:00:37.1]} 0-1

[Event "Early-Titled-Tuesday-Blitz-May-14-2024"]
[Site "Chess.com"]
[Date "2024.05.14"]
[Round "3"]
[White "NewYearGirl"]
[Black "cmunda"]
[Result "1-0"]
[WhiteElo "2383"]
[BlackElo "2140"]
[TimeControl "180+1"]
[EndTime "8:27:49 PDT"]
[Termination "NewYearGirl won by resignation"]

1. e4 {[%clk 0:02:52.7]} 1... c5 {[%clk 0:02:59.6]} 2. Nf3 {[%clk 0:02:52]} 2...
Nc6 {[%clk 0:02:59.3]} 3. d4 {[%clk 0:02:52.3]} 3... cxd4 {[%clk 0:02:59.4]} 4.
Nxd4 {[%clk 0:02:52.7]} 4... e6 {[%clk 0:02:59.9]} 5. Nc3 {[%clk 0:02:52.4]}
5... Nf6 {[%clk 0:02:59.7]} 6. Ndb5 {[%clk 0:02:50.9]} 6... Bb4 {[%clk
0:02:59.6]} 7. a3 {[%clk 0:02:48.8]} 7... Bxc3+ {[%clk 0:02:59.3]} 8. Nxc3
{[%clk 0:02:49.7]} 8... d5 {[%clk 0:02:59.8]} 9. exd5 {[%clk 0:02:50.3]} 9...
exd5 {[%clk 0:02:59.9]} 10. Bd3 {[%clk 0:02:50.9]} 10... O-O {[%clk 0:02:59.6]}
11. O-O {[%clk 0:02:50.5]} 11... h6 {[%clk 0:02:59.8]} 12. h3 {[%clk 0:02:47.3]}
12... Ne5 {[%clk 0:02:55.9]} 13. Bf4 {[%clk 0:02:43.6]} 13... Nxd3 {[%clk
0:02:54.4]} 14. Qxd3 {[%clk 0:02:44.5]} 14... Be6 {[%clk 0:02:53.6]} 15. Rfe1
{[%clk 0:02:39.2]} 15... Re8 {[%clk 0:02:52.1]} 16. Rad1 {[%clk 0:02:38.7]}
16... a6 {[%clk 0:02:52.2]} 17. Be5 {[%clk 0:02:33.2]} 17... Nd7 {[%clk
0:02:48.1]} 18. Bd4 {[%clk 0:02:28.7]} 18... Qg5 {[%clk 0:02:42.2]} 19. Re3
{[%clk 0:02:26.9]} 19... Bf5 {[%clk 0:02:34.6]} 20. Qe2 {[%clk 0:02:17.7]} 20...
Rxe3 {[%clk 0:02:30.4]} 21. Bxe3 {[%clk 0:02:18.6]} 21... Qh4 {[%clk 0:02:14.6]}
22. Nxd5 {[%clk 0:02:16.9]} 22... Re8 {[%clk 0:02:07.1]} 23. Qf3 {[%clk
0:01:50.6]} 23... Bxc2 {[%clk 0:02:01.1]} 24. Rd4 {[%clk 0:01:46.5]} 24... Be4
{[%clk 0:01:48.7]} 25. Qd1 {[%clk 0:01:37.8]} 25... Nf6 {[%clk 0:01:17.3]} 26.
Nc3 {[%clk 0:01:28.2]} 1-0

[Event "Early-Titled-Tuesday-Blitz-May-14-2024"]
[Site "Chess.com"]
[Date "2024.05.14"]
[Round "3"]
[White "Pomegranate988"]
[Black "th3d4rkness"]
[Result "1-0"]
[WhiteElo "2644"]
[BlackElo "2184"]
[TimeControl "180+1"]
[EndTime "8:27:50 PDT"]
[Termination "Pomegranate988 won on time"]

1. Nf3 {[%clk 0:03:00.9]} 1... Nf6 {[%clk 0:02:59.4]} 2. g3 {[%clk 0:03:00.8]}
2... g6 {[%clk 0:02:59.8]} 3. Bg2 {[%clk 0:03:00.2]} 3... Bg7 {[%clk 0:03:00.2]}
4. O-O {[%clk 0:02:59.6]} 4... O-O {[%clk 0:03:00.4]} 5. d4 {[%clk 0:03:00.2]}
5... d6 {[%clk 0:03:00.4]} 6. a4 {[%clk 0:02:59.6]} 6... a6 {[%clk 0:02:58]} 7.
Nc3 {[%clk 0:02:55.9]} 7... Nc6 {[%clk 0:02:54.5]} 8. d5 {[%clk 0:02:50.9]} 8...
Nb8 {[%clk 0:02:47.4]} 9. a5 {[%clk 0:02:51]} 9... e6 {[%clk 0:02:36.1]} 10. e4
{[%clk 0:02:44.8]} 10... exd5 {[%clk 0:02:25.7]} 11. exd5 {[%clk 0:02:42.1]}
11... Bf5 {[%clk 0:02:21.3]} 12. h3 {[%clk 0:02:39.7]} 12... Ne4 {[%clk
0:02:18.4]} 13. Ne2 {[%clk 0:02:34.2]} 13... h5 {[%clk 0:02:08.9]} 14. Ned4
{[%clk 0:02:30.7]} 14... Bc8 {[%clk 0:01:57.1]} 15. Re1 {[%clk 0:02:28.3]} 15...
f5 {[%clk 0:01:50.7]} 16. Rxe4 {[%clk 0:02:15.1]} 16... fxe4 {[%clk 0:01:48.7]}
17. Ng5 {[%clk 0:02:15.6]} 17... Qf6 {[%clk 0:01:37.6]} 18. Nde6 {[%clk
0:02:11.4]} 18... Qxf2+ {[%clk 0:01:33.4]} 19. Kh2 {[%clk 0:02:03.3]} 19... Bxe6
{[%clk 0:01:27.4]} 20. Nxe6 {[%clk 0:01:59.9]} 20... Be5 {[%clk 0:01:23.1]} 21.
Ra3 {[%clk 0:01:53.8]} 21... Rf7 {[%clk 0:01:16]} 22. Ng5 {[%clk 0:01:51.8]}
22... Rf3 {[%clk 0:01:10.9]} 23. Nxe4 {[%clk 0:01:28.7]} 23... Bxg3+ {[%clk
0:00:23.2]} 24. Kh1 {[%clk 0:01:26.8]} 1-0